fUSD/lending_fUSD_20241208
["ID","MTS","AMOUNT","RATE_DAILY","PERIOD"]
[344644411,1733668239386,-4573.14178214,0.00022624,2]
[344644412,1733668239629,-5011.0048,0.00022624,2]
[344644413,1733668239651,-6634.50153298,0.00022624,2]
[344644421,1733668242524,-3212.19982792,0.00022624,2]
[344644422,1733668242536,-3950.90921282,0.00022624,2]
[344644423,1733668242545,-286.7,0.00022631,2]
[344644424,1733668242554,-1663.49605669,0.00022654,2]
[344644425,1733668242824,-614.54536126,0.00022654,2]
[344644426,1733668242835,-3618.4900949,0.00022654,2]
[344644427,1733668242879,-1038.93797804,0.00022654,2]
[344644428,1733668242889,-954.6763968,0.00022655,2]
[344644429,1733668242899,-6935.46949089,0.00022695,2]
[344644430,1733668242909,-10225.4149076,0.00022723,2]
[344644431,1733668242918,-13234.5062,0.00022724,2]
[344644432,1733668242927,-1000.0,0.00022728,2]
[344644433,1733668242936,-1000.0,0.00022728,2]
[344644434,1733668242945,-1000.0,0.00022728,2]
[344644435,1733668242955,-1000.0,0.00022728,2]
[344644436,1733668242964,-1000.0,0.00022728,2]
[344644437,1733668242974,-1000.0,0.00022728,2]
[344644438,1733668242983,-741.0,0.00022728,2]
[344644439,1733668242992,-6935.46949089,0.00022736,2]
[344644440,1733668243002,-16632.38357905,0.00022738,2]
[344644441,1733668243011,-614.86358329,0.00022739,2]
[344644442,1733668243021,-599.66118787,0.00022739,2]
[344644443,1733668243030,-500.0,0.00022739,2]
[344644444,1733668243040,-4300.22,0.00022739,2]
[344644445,1733668243049,-500.0,0.00022739,2]
[344644446,1733668243058,-4182.27,0.00022739,2]
[344644447,1733668243067,-500.0,0.00022739,2]
[344644448,1733668243076,-500.0,0.00022739,2]
[344644449,1733668243085,-500.0,0.00022739,2]
[344644450,1733668243094,-500.0,0.00022739,2]
[344644451,1733668243104,-500.0,0.00022739,2]
[344644452,1733668243114,-500.0,0.00022739,2]
[344644453,1733668243123,-500.0,0.00022739,2]
[344644454,1733668243132,-500.0,0.00022739,2]
[344644455,1733668243142,-4034.9,0.00022739,2]
[344644456,1733668243151,-500.0,0.00022739,2]
[344644457,1733668243161,-500.0,0.00022739,2]
[344644458,1733668243170,-500.0,0.00022739,2]
[344644459,1733668243179,-500.0,0.00022739,2]
[344644460,1733668243189,-500.0,0.00022739,2]
[344644461,1733668243199,-500.0,0.00022739,2]
[344644462,1733668243208,-5648.42,0.00022739,2]
[344644463,1733668243218,-500.0,0.00022739,2]
[344644464,1733668243227,-500.0,0.00022739,2]
[344644465,1733668243237,-500.0,0.00022739,2]
[344644466,1733668243246,-3025.46,0.00022739,2]
[344644467,1733668243256,-500.0,0.00022739,2]
[344644468,1733668243266,-637.23462358,0.00022739,2]
[344644469,1733668243275,-500.0,0.00022739,2]
[344644470,1733668243284,-500.0,0.00022739,2]
[344644471,1733668243293,-559.22154399,0.00022739,2]
[344644476,1733668246211,-150.0,0.0002137,2]
[344644477,1733668246220,-150.0,0.0002137,2]
[344644478,1733668246230,-61.42707158,0.00022739,2]
[344644479,1733668246240,-549.67308106,0.00022739,2]
[344644480,1733668246256,-2650.83691894,0.00022739,2]
[344644481,1733668246265,-500.0,0.00022739,2]
[344644482,1733668246275,-500.0,0.00022739,2]
[344644483,1733668246285,-500.0,0.00022739,2]
[344644484,1733668246295,-614.36940516,0.00022739,2]
[344644485,1733668246304,-24041.00618636,0.0002277,2]
[344644486,1733668246313,-3000.0,0.0002277,2]
[344644487,1733668246323,-6935.46949089,0.00022777,2]
[344644488,1733668246333,-500.0,0.00022799,2]
[344644489,1733668246342,-500.0,0.00022799,2]
[344644490,1733668246352,-500.0,0.00022799,2]
[344644491,1733668246361,-500.0,0.00022799,2]
[344644492,1733668246373,-500.0,0.00022799,2]
[344644493,1733668246382,-599.4896816,0.00022799,2]
[344644494,1733668246391,-500.0,0.00022799,2]
[344644495,1733668246401,-500.0,0.00022799,2]
[344644496,1733668246410,-500.0,0.00022799,2]
[344644497,1733668246419,-500.0,0.00022799,2]
[344644498,1733668246429,-500.0,0.00022799,2]
[344644499,1733668246438,-500.0,0.00022799,2]
[344644500,1733668246450,-500.0,0.00022799,2]
[344644501,1733668246462,-500.0,0.00022799,2]
[344644502,1733668246471,-593.64,0.00022799,2]
[344644503,1733668246481,-500.0,0.00022799,2]
[344644504,1733668246491,-500.0,0.00022799,2]
[344644505,1733668246500,-500.0,0.00022799,2]
[344644506,1733668246510,-275.12623176,0.00022799,2]
[344644507,1733668246519,-500.0,0.00022799,2]
[344644508,1733668246531,-500.0,0.00022799,2]
[344644509,1733668246540,-500.0,0.00022799,2]
[344644510,1733668246551,-567.32,0.00022799,2]
[344644511,1733668246560,-500.0,0.00022799,2]
[344644512,1733668246570,-500.0,0.00022799,2]
[344644513,1733668246579,-504.5,0.00022799,2]
[344644514,1733668246589,-539.26,0.00022799,2]
[344644515,1733668246598,-1250.0,0.000228,3]
[344644516,1733668246608,-6935.46949089,0.00022818,2]
[344644517,1733668246619,-329.1530775,0.00022832,2]
[344644518,1733668246629,-200.0,0.00022832,2]
[344644519,1733668246639,-5581.0857041,0.00022832,2]
[344644520,1733668246648,-205.92930461,0.00022833,2]
[344644521,1733668246658,-2354.52053142,0.00022833,2]
[344644522,1733668246668,-5269.14249318,0.00022834,2]
[344644523,1733668246677,-200.0,0.00022834,2]
[344644524,1733668246686,-200.0,0.00022834,2]
[344644525,1733668246696,-1765.89039856,0.00022835,2]
[344644526,1733668246705,-811.84431412,0.00022836,2]
[344644527,1733668246730,-2327.51639443,0.00022836,2]
[344644528,1733668246740,-3951.85686988,0.00022836,2]
[344644529,1733668246749,-224.49219943,0.00022836,2]
[344644530,1733668246759,-200.0,0.00022836,2]
[344644531,1733668246769,-200.0,0.00022837,2]
[344644532,1733668246779,-1332.546,0.00022837,2]
[344644533,1733668246788,-174.899,0.00022837,2]
[344644534,1733668246798,-2222.91948931,0.00022838,2]
[344644535,1733668246808,-200.0,0.00022838,2]
[344644536,1733668246817,-200.0,0.00022839,2]
[344644537,1733668246827,-205.92930461,0.00022839,2]
[344644538,1733668246836,-200.0,0.0002284,2]
[344644539,1733668246846,-4185.81427807,0.0002284,2]
[344644540,1733668246855,-958.86286612,0.0002284,2]
[344644541,1733668246867,-365.5549328,0.0002284,2]
[344644542,1733668246877,-200.0,0.0002284,2]
[344644543,1733668246886,-74.5900447,0.00022841,2]
[344644544,1733668246898,-125.4099553,0.00022841,2]
[344644545,1733668246908,-2354.52053142,0.00022841,2]
[344644546,1733668246918,-205.92930461,0.00022842,2]
[344644547,1733668246931,-2346.1765629,0.00022842,2]
[344644623,1733669431852,-740.55,0.00019223,2]
[344644624,1733669431861,-8565.68899374,0.00019917,2]
[344644625,1733669431871,-300.0,0.00020016,2]
[344644626,1733669431882,-14259.33576924,0.00020017,2]
[344644627,1733669431893,-7439.659,0.00020017,2]
[344644628,1733669431913,-825.48523076,0.00020017,2]
[344644629,1733669431923,-150.0,0.0002099,2]
[344644630,1733669431934,-82.45807777,0.00020999,2]
[344644639,1733669437556,-253.57660646,0.00020999,2]
[344644641,1733669437590,-1991.48953156,0.00020999,2]
[344644642,1733669437601,-1100.81192135,0.00020999,2]
[344644643,1733669437798,-1989.26833443,0.00020999,2]
[344644670,1733669439747,-2418.0419206,0.00020999,2]
[344644671,1733669439757,-7164.5385794,0.00021,2]
[344644676,1733669442716,-427.52913518,0.00021,2]
[344644677,1733669443107,-2384.33687328,0.00021,2]
[344644678,1733669443139,-3674.58199001,0.00021,2]
[344644679,1733669443151,-1417.94725802,0.00021,2]
[344644680,1733669443161,-362.0,0.00021015,2]
[344644681,1733669443170,-2439.42763803,0.0002103,2]
[344644682,1733669443181,-1751.87236197,0.0002103,2]
[344644683,1733669443191,-1000.0,0.00021141,2]
[344644684,1733669443200,-272.29,0.0002137,2]
[344644685,1733669443210,-150.0,0.00021452,2]
[344644686,1733669443220,-117.97409657,0.00021487,2]
[344644687,1733669443236,-622.57590343,0.00021487,2]
[344644688,1733669443246,-982.85307897,0.00021611,2]
[344644689,1733669443257,-2543.23090343,0.00021611,2]
[344644690,1733669443310,-8250.794301,0.00021611,2]
[344644691,1733669443322,-529.90513464,0.00021611,2]
[344644692,1733669443333,-526.86,0.00021611,2]
[344644693,1733669443345,-547.127,0.00021611,2]
[344644694,1733669443356,-606.78,0.00021611,2]
[344644695,1733669443546,-9337.9143,0.00021611,2]
[344644703,1733669445580,-574.53528196,0.00021611,2]
[344644704,1733669445589,-250.0,0.00021686,2]
[344644705,1733669445598,-605.04,0.00021699,2]
[344644706,1733669445607,-250.0,0.00021699,2]
[344644707,1733669445617,-204.07,0.00021719,30]
[344644708,1733669445626,-213.89,0.00021788,2]
[344644709,1733669445636,-420.0,0.00021795,2]
[344644710,1733669445645,-306.009,0.0002185,2]
[344644711,1733669445654,-638.0,0.00021876,2]
[344644712,1733669445663,-264.4841,0.000219,2]
[344644713,1733669445672,-167.7,0.00021918,2]
[344644714,1733669445681,-173.12,0.00021918,2]
[344644715,1733669445690,-250.0,0.00021964,2]
[344644716,1733669445699,-361.40437579,0.00021999,2]
[344644717,1733669445707,-359.19316225,0.00022,2]
[344644718,1733669445718,-1897.23253131,0.00022,2]
[344644719,1733669445729,-488.88,0.00022,2]
[344644720,1733669445897,-3898.5,0.00022,2]
[344644721,1733669445909,-82370.55230887,0.00022,2]
[344644722,1733669445952,-49314.9999765,0.00022,2]
[344644723,1733669445963,-481.40144037,0.00022,2]
[344644724,1733669445974,-482.7265,0.00022,2]
[344644876,1733670631928,-666.49,0.00019199,2]
[344644877,1733670631938,-635.07418636,0.0002,2]
[344644878,1733670631947,-250.0,0.0002096,2]
[344644879,1733670631957,-1000.0,0.00021013,2]
[344644880,1733670631966,-300.0,0.00021028,2]
[344644881,1733670631975,-23900.0,0.00021029,2]
[344644882,1733670631985,-510.4,0.00021073,2]
[344644883,1733670631995,-250.0,0.00021089,2]
[344644884,1733670632004,-305.49,0.00021115,2]
[344644885,1733670632014,-2095.65,0.00021336,2]
[344644886,1733670632023,-193.86,0.00021339,30]
[344644887,1733670632032,-217.83,0.0002137,2]
[344644888,1733670632041,-484.03,0.0002137,2]
[344644889,1733670632050,-150.0,0.00021432,2]
[344644890,1733670632060,-192.5,0.00021432,2]
[344644891,1733670632069,-666.49,0.00021463,2]
[344644892,1733670632078,-200.0,0.00021513,2]
[344644893,1733670632088,-310.2904,0.000218,2]
[344644894,1733670632097,-150.0,0.000218,2]
[344644895,1733670632107,-163.89,0.000218,2]
[344644896,1733670632116,-1387.09389825,0.000218,2]
[344644897,1733670632126,-293.598,0.0002185,2]
[344644898,1733670632135,-1066.037,0.00021899,2]
[344644899,1733670632144,-1481.0082,0.00021899,2]
[344644900,1733670632158,-39297.9971,0.000219,2]
[344644901,1733670632167,-10057.5305,0.000219,2]
[344644902,1733670632176,-1393.36832224,0.000219,2]
[344644903,1733670632200,-2754.25147776,0.000219,2]
[344644904,1733670632210,-16663.05959565,0.000219,2]
[344644905,1733670632225,-5359.83250435,0.000219,2]
[344644906,1733670632235,-179.4579,0.000219,2]
[344644907,1733670632246,-38384.9823,0.000219,2]
[344644908,1733670632255,-6379.1762,0.000219,2]
[344644909,1733670632264,-3000.0,0.000219,2]
[344644910,1733670632274,-209.06604473,0.000219,2]
[344644911,1733670632284,-545.0501,0.000219,2]
[344644912,1733670632294,-512.0242,0.000219,2]
[344644913,1733670632304,-167.7,0.00021918,2]
[344644914,1733670632313,-44773.71075092,0.00022,2]
[344644916,1733670632325,-1291.1088336,0.00022,2]
[344644917,1733670632336,-85583.90883936,0.00022,2]
[344644956,1733670637745,-1387.09389817,0.00021911,2]
[344644957,1733670637920,-97683.40610178,0.00022,2]
[344644958,1733670637939,-11633.99959994,0.00022,2]
[344644959,1733670638064,-39854.22781938,0.00022,2]
[344644960,1733670638076,-2650.60922009,0.00022,2]
[344645105,1733670640001,-2579.47223899,0.00022,2]
[344645106,1733670640013,-9985.0,0.00022,2]
[344645117,1733670643004,-2793.49462291,0.00022,2]
[344645118,1733670643014,-13780.71107609,0.00022,2]
[344645119,1733670643027,-1643.6814735,0.00022,2]
[344645120,1733670643036,-471211.1626366,0.00022,2]
[344645121,1733670643047,-2517.4002954,0.00022,2]
[344645122,1733670643058,-590.622258,0.00022,2]
[344645123,1733670643070,-582.34709152,0.00022,2]
[344645124,1733670643192,-33752.61506028,0.00022,2]
[344645125,1733670643207,-3000.0,0.00022,2]
[344645126,1733670643217,-1387.09389817,0.00022022,2]
[344645127,1733670643226,-289.53,0.00022083,2]
[344645128,1733670643236,-217.83,0.00022161,2]
[344645129,1733670643246,-484.03,0.00022161,2]
[344645130,1733670643256,-1000.0,0.00022297,2]
[344645131,1733670643266,-500.0,0.00022301,2]
[344645132,1733670643276,-153.0,0.00022395,2]
[344645133,1733670643286,-153.0,0.00022395,2]
[344645134,1733670643296,-153.0,0.00022395,2]
[344645135,1733670643306,-153.0,0.00022395,2]
[344645136,1733670643315,-153.0,0.00022395,2]
[344645137,1733670643325,-1747.71538803,0.000225,2]
[344645138,1733670643337,-2252.28461197,0.000225,2]
[344645139,1733670643346,-152.0,0.00022562,3]
[344645140,1733670643355,-238.0,0.0002257,2]
[344645141,1733670643365,-192.5,0.00022622,2]
[344645142,1733670643374,-2060.81305721,0.00022738,2]
[344645143,1733670643389,-1138.08,0.00022738,2]
[344645144,1733670643401,-1870.49375,0.00022738,2]
[344645145,1733670643413,-9086.09985681,0.00022738,2]
[344645146,1733670643424,-8116.84417155,0.00022738,2]
[344645147,1733670643437,-2953.78611408,0.00022738,2]
[344645149,1733670643472,-711.5639944,0.00022738,2]
[344645150,1733670643485,-1998.01,0.00022738,2]
[344645151,1733670643496,-3985.9,0.00022738,2]
[344645152,1733670643511,-4991.26599584,0.00022738,2]
[344645153,1733670643524,-45674.80306011,0.00022738,2]
[344645154,1733670643533,-300.0,0.00022738,2]
[344645155,1733670643543,-500.0,0.00022739,2]
[344645156,1733670643552,-500.0,0.00022739,2]
[344645157,1733670643561,-1355.92,0.00022739,2]
[344645158,1733670643571,-1355.92,0.00022739,2]
[344645159,1733670643580,-500.0,0.00022739,2]
[344645160,1733670643589,-500.0,0.00022739,2]
[344645161,1733670643598,-653.4,0.00022739,2]
[344645162,1733670643607,-653.4,0.00022739,2]
[344645163,1733670643617,-500.0,0.00022739,2]
[344645164,1733670643626,-500.0,0.00022739,2]
[344645165,1733670643636,-1435.76,0.00022739,2]
[344645166,1733670643646,-1435.76,0.00022739,2]
[344645167,1733670643655,-717.56,0.00022739,2]
[344645168,1733670643666,-717.56,0.00022739,2]
[344645169,1733670643675,-500.0,0.00022739,2]
[344645170,1733670643685,-500.0,0.00022739,2]
[344645172,1733670643695,-500.0,0.00022739,2]
[344645174,1733670643704,-500.0,0.00022739,2]
[344645176,1733670643713,-500.0,0.00022739,2]
[344645177,1733670643723,-500.0,0.00022739,2]
[344645178,1733670643733,-696.85,0.00022739,2]
[344645179,1733670643742,-696.85,0.00022739,2]
[344645180,1733670643752,-500.0,0.00022739,2]
[344645181,1733670643762,-500.0,0.00022739,2]
[344645182,1733670643771,-950.57,0.00022739,2]
[344645183,1733670643780,-950.57,0.00022739,2]
[344645184,1733670643789,-1956.17,0.00022739,2]
[344645185,1733670643798,-1956.17,0.00022739,2]
[344645186,1733670643807,-500.0,0.00022739,2]
[344645187,1733670643817,-500.0,0.00022739,2]
[344645188,1733670643826,-500.0,0.00022739,2]
[344645189,1733670643835,-500.0,0.00022739,2]
[344645190,1733670643846,-500.0,0.00022739,2]
[344645191,1733670643855,-500.0,0.00022739,2]
[344645192,1733670643865,-500.0,0.00022739,2]
[344645193,1733670643874,-500.0,0.00022739,2]
[344645194,1733670643884,-500.0,0.00022739,2]
[344645195,1733670643893,-500.0,0.00022739,2]
[344645196,1733670643902,-500.0,0.00022739,2]
[344645197,1733670643912,-500.0,0.00022739,2]
[344645198,1733670643921,-603.71696363,0.00022739,2]
[344645199,1733670643931,-500.0,0.00022739,2]
[344645200,1733670643940,-500.0,0.00022739,2]
[344645201,1733670643949,-500.0,0.00022739,2]
[344645202,1733670643958,-500.0,0.00022739,2]
[344645203,1733670643966,-500.0,0.00022739,2]
[344645204,1733670643975,-500.0,0.00022739,2]
[344645205,1733670643985,-500.0,0.00022739,2]
[344645206,1733670643994,-500.0,0.00022739,2]
[344645207,1733670644003,-500.0,0.00022739,2]
[344645208,1733670644012,-500.0,0.00022739,2]
[344645209,1733670644022,-500.0,0.00022739,2]
[344645210,1733670644032,-500.0,0.00022739,2]
[344645211,1733670644041,-500.0,0.00022739,2]
[344645212,1733670644050,-500.0,0.00022739,2]
[344645213,1733670644059,-500.0,0.00022739,2]
[344645214,1733670644068,-500.0,0.00022739,2]
[344645215,1733670644077,-500.0,0.00022739,2]
[344645216,1733670644086,-500.0,0.00022739,2]
[344645217,1733670644096,-500.0,0.00022739,2]
[344645218,1733670644105,-500.0,0.00022739,2]
[344645219,1733670644114,-500.0,0.00022739,2]
[344645220,1733670644123,-967.86,0.00022739,2]
[344645221,1733670644132,-967.86,0.00022739,2]
[344645222,1733670644142,-500.0,0.00022739,2]
[344645223,1733670644151,-500.0,0.00022739,2]
[344645224,1733670644161,-606.48999242,0.00022739,2]
[344645225,1733670644172,-500.0,0.00022739,2]
[344645226,1733670644182,-500.0,0.00022739,2]
[344645227,1733670644192,-500.0,0.00022739,2]
[344645228,1733670644203,-500.0,0.00022739,2]
[344645229,1733670644213,-500.0,0.00022739,2]
[344645230,1733670644225,-500.0,0.00022739,2]
[344645231,1733670644234,-637.37905833,0.00022739,2]
[344645232,1733670644246,-500.0,0.00022739,2]
[344645233,1733670644256,-500.0,0.00022739,2]
[344645234,1733670644266,-501.47747158,0.00022739,2]
[344645235,1733670644276,-500.0,0.00022739,2]
[344645236,1733670644285,-500.0,0.00022739,2]
[344645237,1733670644296,-500.0,0.00022739,2]
[344645238,1733670644306,-500.0,0.00022739,2]
[344645239,1733670644316,-500.0,0.00022739,2]
[344645240,1733670644325,-500.0,0.00022739,2]
[344645241,1733670644335,-500.0,0.00022739,2]
[344645242,1733670644344,-500.0,0.00022739,2]
[344645243,1733670644353,-500.0,0.00022739,2]
[344645244,1733670644362,-500.0,0.00022739,2]
[344645245,1733670644371,-620.72496405,0.00022739,2]
[344645246,1733670644380,-500.0,0.00022739,2]
[344645247,1733670644390,-500.0,0.00022739,2]
[344645248,1733670644399,-500.0,0.00022739,2]
[344645249,1733670644409,-500.0,0.00022739,2]
[344645250,1733670644423,-307.54721843,0.00022739,2]
[344645255,1733670645903,-1387.09389817,0.00022133,2]
[344645256,1733670645912,-192.45278157,0.00022739,2]
[344645257,1733670645923,-500.0,0.00022739,2]
[344645258,1733670645932,-500.0,0.00022739,2]
[344645259,1733670645941,-500.0,0.00022739,2]
[344645260,1733670645950,-500.0,0.00022739,2]
[344645261,1733670645960,-351.35332026,0.00022739,2]
[344645262,1733670645971,-148.64667974,0.00022739,2]
[344645263,1733670645980,-500.0,0.00022739,2]
[344645264,1733670645989,-500.0,0.00022739,2]
[344645265,1733670645998,-500.0,0.00022739,2]
[344645266,1733670646008,-500.0,0.00022739,2]
[344645267,1733670646017,-500.0,0.00022739,2]
[344645268,1733670646027,-500.0,0.00022739,2]
[344645269,1733670646036,-500.0,0.00022739,2]
[344645270,1733670646045,-152.674032,0.00022739,7]
[344645271,1733670646054,-500.0,0.00022739,2]
[344645272,1733670646063,-500.0,0.00022739,2]
[344645273,1733670646072,-500.0,0.00022739,2]
[344645274,1733670646081,-500.0,0.00022739,2]
[344645275,1733670646090,-500.0,0.00022739,2]
[344645276,1733670646099,-500.0,0.00022739,2]
[344645277,1733670646109,-500.0,0.00022739,2]
[344645278,1733670646118,-500.0,0.00022739,2]
[344645279,1733670646127,-500.0,0.00022739,2]
[344645280,1733670646136,-500.0,0.00022739,2]
[344645281,1733670646145,-500.0,0.00022739,2]
[344645282,1733670646154,-500.0,0.00022739,2]
[344645283,1733670646165,-500.0,0.00022739,2]
[344645284,1733670646175,-500.0,0.00022739,2]
[344645285,1733670646184,-500.0,0.00022739,2]
[344645286,1733670646194,-500.0,0.00022739,2]
[344645287,1733670646203,-500.0,0.00022739,2]
[344645288,1733670646363,-500.0,0.00022739,2]
[344645289,1733670646373,-500.0,0.00022739,2]
[344645290,1733670646382,-500.0,0.00022739,2]
[344645291,1733670646391,-500.0,0.00022739,2]
[344645292,1733670646401,-500.0,0.00022739,2]
[344645293,1733670646410,-500.0,0.00022739,2]
[344645294,1733670646422,-500.0,0.00022739,2]
[344645295,1733670646432,-500.0,0.00022739,2]
[344645296,1733670646442,-500.0,0.00022739,2]
[344645297,1733670646451,-500.0,0.00022739,2]
[344645298,1733670646461,-500.0,0.00022739,2]
[344645299,1733670646470,-500.0,0.00022739,2]
[344645300,1733670646479,-500.0,0.00022739,2]
[344645301,1733670646488,-500.0,0.00022739,2]
[344645302,1733670646498,-500.0,0.00022739,2]
[344645303,1733670646507,-500.0,0.00022739,2]
[344645304,1733670646516,-500.0,0.00022739,2]
[344645305,1733670646525,-500.0,0.00022739,2]
[344645306,1733670646534,-500.0,0.00022739,2]
[344645307,1733670646543,-500.0,0.00022739,2]
[344645308,1733670646552,-640.20242088,0.00022739,2]
[344645309,1733670646562,-500.0,0.00022739,2]
[344645310,1733670646571,-500.0,0.00022739,2]
[344645311,1733670646580,-500.0,0.00022739,2]
[344645312,1733670646589,-500.0,0.00022739,2]
[344645313,1733670646598,-500.0,0.00022739,2]
[344645314,1733670646607,-500.0,0.00022739,2]
[344645315,1733670646616,-500.0,0.00022739,2]
[344645316,1733670646626,-500.0,0.00022739,2]
[344645317,1733670646635,-1512.225285,0.00022739,2]
[344645318,1733670646644,-500.0,0.00022739,2]
[344645319,1733670646653,-500.0,0.00022739,2]
[344645320,1733670646662,-500.0,0.00022739,2]
[344645321,1733670646673,-500.0,0.00022739,2]
[344645322,1733670646683,-628.66096955,0.00022739,2]
[344645323,1733670646693,-500.0,0.00022739,2]
[344645324,1733670646702,-500.0,0.00022739,2]
[344645325,1733670646711,-500.0,0.00022739,2]
[344645326,1733670646720,-500.0,0.00022739,2]
[344645327,1733670646729,-500.0,0.00022739,2]
[344645328,1733670646739,-500.0,0.00022739,2]
[344645329,1733670646748,-500.0,0.00022739,2]
[344645330,1733670646757,-500.0,0.00022739,2]
[344645331,1733670646766,-500.0,0.00022739,2]
[344645332,1733670646775,-500.0,0.00022739,2]
[344645333,1733670646784,-500.0,0.00022739,2]
[344645334,1733670646793,-500.0,0.00022739,2]
[344645335,1733670646802,-500.0,0.00022739,2]
[344645336,1733670646812,-500.0,0.00022739,2]
[344645337,1733670646821,-500.0,0.00022739,2]
[344645338,1733670646830,-500.0,0.00022739,2]
[344645339,1733670646839,-500.0,0.00022739,2]
[344645340,1733670646848,-90.94254637,0.00022739,2]
[344645341,1733670646892,-409.05745363,0.00022739,2]
[344645342,1733670646901,-166.02743815,0.00022739,2]
[344645343,1733670646912,-333.97256185,0.00022739,2]
[344645344,1733670646923,-500.0,0.00022739,2]
[344645345,1733670646931,-356.54776686,0.00022739,2]
[344645346,1733670646942,-143.45223314,0.00022739,2]
[344645347,1733670646951,-500.0,0.00022739,2]
[344645348,1733670646960,-500.0,0.00022739,2]
[344645349,1733670646969,-500.0,0.00022739,2]
[344645350,1733670646978,-125.07821186,0.00022739,2]
[344645351,1733670646994,-374.92178814,0.00022739,2]
[344645352,1733670647003,-500.0,0.00022739,2]
[344645353,1733670647012,-500.0,0.00022739,2]
[344645354,1733670647021,-500.0,0.00022739,2]
[344645355,1733670647030,-500.0,0.00022739,2]
[344645356,1733670647039,-500.0,0.00022739,2]
[344645357,1733670647048,-500.0,0.00022739,2]
[344645358,1733670647057,-500.0,0.00022739,2]
[344645359,1733670647066,-500.0,0.00022739,2]
[344645360,1733670647075,-500.0,0.00022739,2]
[344645361,1733670647084,-500.0,0.00022739,2]
[344645362,1733670647093,-500.0,0.00022739,2]
[344645363,1733670647105,-500.0,0.00022739,2]
[344645364,1733670647115,-500.0,0.00022739,2]
[344645365,1733670647124,-500.0,0.00022739,2]
[344645366,1733670647133,-500.0,0.00022739,2]
[344645367,1733670647142,-500.0,0.00022739,2]
[344645368,1733670647151,-500.0,0.00022739,2]
[344645369,1733670647160,-500.0,0.00022739,2]
[344645370,1733670647171,-500.0,0.00022739,2]
[344645371,1733670647181,-500.0,0.00022739,2]
[344645372,1733670647190,-615.43224615,0.00022739,2]
[344645373,1733670647203,-500.0,0.00022739,2]
[344645374,1733670647212,-500.0,0.00022739,2]
[344645375,1733670647222,-500.0,0.00022739,2]
[344645376,1733670647232,-500.0,0.00022739,2]
[344645377,1733670647241,-500.0,0.00022739,2]
[344645378,1733670647251,-500.0,0.00022739,2]
[344645379,1733670647260,-500.0,0.00022739,2]
[344645380,1733670647270,-500.0,0.00022739,2]
[344645381,1733670647280,-500.0,0.00022739,2]
[344645382,1733670647289,-500.0,0.00022739,2]
[344645383,1733670647299,-500.0,0.00022739,2]
[344645384,1733670647308,-500.0,0.00022739,2]
[344645385,1733670647318,-500.0,0.00022739,2]
[344645386,1733670647327,-500.0,0.00022739,2]
[344645387,1733670647337,-500.0,0.00022739,2]
[344645388,1733670647346,-500.0,0.00022739,2]
[344645389,1733670647355,-500.0,0.00022739,2]
[344645390,1733670647364,-380.63880596,0.00022739,2]
[344645391,1733670647374,-500.0,0.00022739,2]
[344645392,1733670647383,-500.0,0.00022739,2]
[344645393,1733670647393,-500.0,0.00022739,2]
[344645394,1733670647402,-500.0,0.00022739,2]